[Event "SS Manhem Chess Week 2019 Goteborg Open"]
[Site "Molnlycke kulturhus, Biblioteksgatan 2, Molnlycke, Sweden"]
[Date "2019.08.18"]
[Round "7.4"]
[White "Le, Quang Long"]
[Black "Rydstrom, Tom"]
[Result "1-0"]
[TimeControl "15 minutes + 5 seconds per move from move one (Round 1 - 4) / 90 minutes + 30 seconds per move from move one (Round 5 - 8)"]
[WhiteTitle "IM"]
[BlackTitle "FM"]
[WhiteFideId "12401749"]
[BlackFideId "1714830"]
[WhiteElo "2411"]
[BlackElo "2314"]

1. Nf3 {[%clk 01:28:19]} {[%emt 00:02:31]} d5 {[%clk 01:30:50]} {[%emt
00:00:11]} 2. g3 {[%clk 01:28:12]} {[%emt 00:00:37]} Nc6 {[%clk 01:30:14]}
{[%emt 00:01:06]} 3. Bg2 {[%clk 01:26:54]} {[%emt 00:01:47]} e5 {[%clk
01:30:39]} {[%emt 00:00:05]} 4. d3 {[%clk 01:27:20]} {[%emt 00:00:05]} Be6
{[%clk 01:28:20]} {[%emt 00:02:48]} 5. O-O {[%clk 01:26:53]} {[%emt 00:00:57]}
Qd7 {[%clk 01:26:17]} {[%emt 00:02:32]} 6. Nc3 {[%clk 01:23:24]} {[%emt
00:04:00]} f6 {[%clk 01:25:50]} {[%emt 00:00:56]} 7. e4 {[%clk 01:22:30]}
{[%emt 00:01:25]} d4 {[%clk 01:25:17]} {[%emt 00:01:03]} 8. Ne2 {[%clk
01:22:15]} {[%emt 00:00:45]} O-O-O {[%clk 01:25:13]} {[%emt 00:00:35]} 9. Ne1
{[%clk 01:19:06]} {[%emt 00:03:38]} g5 {[%clk 01:25:37]} {[%emt 00:00:06]} 10.
c3 {[%clk 01:13:01]} {[%emt 00:06:35]} Bh3 {[%clk 01:20:01]} {[%emt 00:06:06]}
11. cxd4 {[%clk 01:12:42]} {[%emt 00:00:49]} Bxg2 {[%clk 01:20:27]} {[%emt
00:00:04]} 12. Kxg2 {[%clk 01:11:58]} {[%emt 00:01:14]} exd4 {[%clk 01:17:06]}
{[%emt 00:03:51]} 13. Qa4 {[%clk 01:06:23]} {[%emt 00:06:04]} h5 {[%clk
01:16:59]} {[%emt 00:00:37]} 14. h3 {[%clk 01:06:21]} {[%emt 00:00:32]} Nge7
{[%clk 01:15:04]} {[%emt 00:02:26]} 15. b4 {[%clk 01:00:14]} {[%emt 00:06:37]}
Kb8 {[%clk 01:14:16]} {[%emt 00:01:18]} 16. Bb2 {[%clk 00:57:47]} {[%emt
00:02:57]} a6 {[%clk 00:43:58]} {[%emt 00:30:49]} 17. Nc2 {[%clk 00:39:47]}
{[%emt 00:18:29]} h4 {[%clk 00:44:14]} {[%emt 00:00:15]} 18. g4 {[%clk
00:39:47]} {[%emt 00:00:30]} f5 {[%clk 00:36:46]} {[%emt 00:07:58]} 19. f3
{[%clk 00:32:28]} {[%emt 00:07:49]} fxg4 {[%clk 00:36:50]} {[%emt 00:00:27]} 20.
fxg4 {[%clk 00:32:50]} {[%emt 00:00:08]} Bg7 {[%clk 00:35:27]} {[%emt
00:01:52]} 21. b5 {[%clk 00:24:04]} {[%emt 00:09:16]} Na7 {[%clk 00:23:52]}
{[%emt 00:12:05]} 22. Rf7 {[%clk 00:23:47]} {[%emt 00:00:47]} Be5 {[%clk
00:22:36]} {[%emt 00:01:47]} 23. Qb4 {[%clk 00:20:51]} {[%emt 00:03:25]} Bd6
{[%clk 00:22:12]} {[%emt 00:00:54]} 24. Qxd4 {[%clk 00:21:13]} {[%emt
00:00:08]} Qxb5 {[%clk 00:20:00]} {[%emt 00:02:42]} 25. Qc3 {[%clk 00:20:28]}
{[%emt 00:01:15]} Rhf8 {[%clk 00:15:46]} {[%emt 00:04:44]} 26. Raf1 {[%clk
00:20:24]} {[%emt 00:00:34]} Rxf7 {[%clk 00:16:13]} {[%emt 00:00:04]} 27. Rxf7
{[%clk 00:20:47]} {[%emt 00:00:06]} Nac6 {[%clk 00:16:10]} {[%emt 00:00:33]} 28.
Qb3 {[%clk 00:16:33]} {[%emt 00:04:44]} Qxb3 {[%clk 00:10:45]} {[%emt
00:05:55]} 29. axb3 {[%clk 00:17:01]} {[%emt 00:00:02]} Ng6 {[%clk 00:11:05]}
{[%emt 00:00:11]} 30. d4 {[%clk 00:12:12]} {[%emt 00:05:18]} Nf4+ {[%clk
00:10:20]} {[%emt 00:01:15]} 31. Nxf4 {[%clk 00:12:36]} {[%emt 00:00:06]} Bxf4
{[%clk 00:10:47]} {[%emt 00:00:03]} 32. d5 {[%clk 00:12:47]} {[%emt 00:00:19]}
Na5 {[%clk 00:10:31]} {[%emt 00:00:46]} 33. Nd4 {[%clk 00:12:44]} {[%emt
00:00:34]} Re8 {[%clk 00:09:55]} {[%emt 00:01:06]} 34. Ne6 {[%clk 00:12:54]}
{[%emt 00:00:20]} Nxb3 {[%clk 00:09:56]} {[%emt 00:00:30]} 35. Nxf4 {[%clk
00:13:02]} {[%emt 00:00:22]} gxf4 {[%clk 00:09:58]} {[%emt 00:00:28]} 36. e5
{[%clk 00:13:22]} {[%emt 00:00:10]} Nc5 {[%clk 00:07:38]} {[%emt 00:02:51]} 37.
Ba3 {[%clk 00:05:29]} {[%emt 00:08:22]} Nd3 {[%clk 00:04:03]} {[%emt 00:04:05]}
38. e6 {[%clk 00:05:53]} {[%emt 00:00:06]} Kc8 {[%clk 00:04:27]} {[%emt
00:00:07]} 39. Rf6 {[%clk 00:04:13]} {[%emt 00:02:09]} b5 {[%clk 00:04:18]}
{[%emt 00:00:40]} 40. Rf8 {[%clk 00:01:30]} {[%emt 00:03:13]} Rxf8 {[%clk
00:02:54]} {[%emt 00:01:53]} 41. Bxf8 {[%clk 00:01:58]} {[%emt 00:00:02]} b4
{[%clk 00:02:21]} {[%emt 00:01:04]} 42. g5 {[%clk 00:01:54]} {[%emt 00:00:33]}
b3 {[%clk 00:01:02]} {[%emt 00:01:49]} 43. Ba3 {[%clk 00:02:16]} {[%emt
00:00:08]} Ne5 {[%clk 00:01:06]} {[%emt 00:00:26]} 44. Bb2 {[%clk 00:02:37]}
{[%emt 00:00:09]} f3+ {[%clk 00:01:28]} {[%emt 00:00:09]} 45. Kf1 {[%clk
00:01:53]} {[%emt 00:01:13]} Ng6 {[%clk 00:01:04]} {[%emt 00:00:54]} 46. Kf2
{[%clk 00:02:15]} {[%emt 00:00:08]} Kb7 {[%clk 00:00:33]} {[%emt 00:01:01]} 47.
Kxf3 {[%clk 00:02:23]} {[%emt 00:00:22]} Kb6 {[%clk 00:00:34]} {[%emt
00:00:29]} 48. Ke4 {[%clk 00:00:55]} {[%emt 00:01:57]} Kc5 {[%clk 00:00:42]}
{[%emt 00:00:22]} 49. Ba3+ {[%clk 00:00:47]} {[%emt 00:00:38]} Kc4 {[%clk
00:01:02]} {[%emt 00:00:10]} 50. Kf5 {[%clk 00:01:10]} {[%emt 00:00:07]} Ne7+
{[%clk 00:01:30]} {[%emt 00:00:02]} 51. Kf6 {[%clk 00:01:35]} {[%emt 00:00:04]}
Nxd5+ {[%clk 00:01:47]} {[%emt 00:00:13]} 52. Kf7 {[%clk 00:01:59]} {[%emt
00:00:06]} c5 {[%clk 00:00:32]} {[%emt 00:01:46]} 53. g6 {[%clk 00:02:17]} 1-0

[Event "SS Manhem Chess Week 2019 Goteborg Open"]
[Site "Molnlycke kulturhus, Biblioteksgatan 2, Molnlycke, Sweden"]
[Date "2019.08.18"]
[Round "7.5"]
[White "Carlsson, Ludvig"]
[Black "Seo, Jung Min"]
[Result "0-1"]
[TimeControl "15 minutes + 5 seconds per move from move one (Round 1 - 4) / 90 minutes + 30 seconds per move from move one (Round 5 - 8)"]
[WhiteTitle "CM"]
[BlackTitle "FM"]
[WhiteFideId "1727010"]
[BlackFideId "1734687"]
[WhiteElo "2234"]
[BlackElo "2409"]

1. d4 {[%clk 01:30:54]} {[%emt 00:00:03]} Nf6 {[%clk 01:30:57]} {[%emt
00:00:04]} 2. c4 {[%clk 01:30:56]} {[%emt 00:00:27]} b6 {[%clk 01:31:26]}
{[%emt 00:00:03]} 3. g4 {[%clk 01:31:10]} {[%emt 00:00:16]} Nxg4 {[%clk
01:25:41]} {[%emt 00:06:16]} 4. Bg2 {[%clk 01:31:31]} {[%emt 00:00:08]} c6
{[%clk 01:26:04]} {[%emt 00:00:07]} 5. Nc3 {[%clk 01:31:35]} {[%emt 00:00:26]}
d6 {[%clk 01:24:43]} {[%emt 00:01:51]} 6. Bg5 {[%clk 01:31:57]} {[%emt
00:00:08]} Nf6 {[%clk 01:22:29]} {[%emt 00:02:45]} 7. e4 {[%clk 01:28:22]}
{[%emt 00:04:04]} e5 {[%clk 01:22:41]} {[%emt 00:00:18]} 8. Nge2 {[%clk
01:28:17]} {[%emt 00:00:35]} Be7 {[%clk 01:22:21]} {[%emt 00:00:51]} 9. O-O
{[%clk 01:25:16]} {[%emt 00:03:30]} O-O {[%clk 01:21:20]} {[%emt 00:01:31]} 10.
Qd3 {[%clk 01:18:30]} {[%emt 00:07:15]} Nh5 {[%clk 01:17:06]} {[%emt 00:04:45]}
11. Be3 {[%clk 01:15:30]} {[%emt 00:03:30]} Bg5 {[%clk 01:16:40]} {[%emt
00:00:57]} 12. f4 {[%clk 01:12:08]} {[%emt 00:03:52]} exf4 {[%clk 01:15:20]}
{[%emt 00:01:51]} 13. Nxf4 {[%clk 01:12:26]} {[%emt 00:00:11]} Bxf4 {[%clk
01:15:40]} {[%emt 00:00:11]} 14. Bxf4 {[%clk 01:12:48]} {[%emt 00:00:07]} Nxf4
{[%clk 01:16:08]} {[%emt 00:00:02]} 15. Rxf4 {[%clk 01:13:07]} {[%emt
00:00:11]} Nd7 {[%clk 01:13:18]} {[%emt 00:03:20]} 16. Raf1 {[%clk 01:08:49]}
{[%emt 00:04:47]} Bb7 {[%clk 01:12:24]} {[%emt 00:01:24]} 17. Qh3 {[%clk
01:05:18]} {[%emt 00:04:00]} Qe7 {[%clk 01:06:41]} {[%emt 00:06:14]} 18. Rh4
{[%clk 00:59:55]} {[%emt 00:05:53]} h6 {[%clk 01:06:06]} {[%emt 00:01:05]} 19.
Rff4 {[%clk 00:58:48]} {[%emt 00:01:37]} f5 {[%clk 00:58:47]} {[%emt 00:07:50]}
20. exf5 {[%clk 00:56:33]} {[%emt 00:02:45]} Nf6 {[%clk 00:58:45]} {[%emt
00:00:32]} 21. Qg3 {[%clk 00:55:00]} {[%emt 00:02:02]} Rae8 {[%clk 00:55:31]}
{[%emt 00:03:45]} 22. Ne4 {[%clk 00:54:02]} {[%emt 00:01:27]} Nxe4 {[%clk
00:51:54]} {[%emt 00:04:08]} 23. Bxe4 {[%clk 00:53:47]} {[%emt 00:00:44]} Rf6
{[%clk 00:51:02]} {[%emt 00:01:21]} 24. Qg2 {[%clk 00:38:37]} {[%emt 00:15:40]}
Kh8 {[%clk 00:48:11]} {[%emt 00:03:22]} 25. Rhg4 {[%clk 00:36:35]} {[%emt
00:02:31]} d5 {[%clk 00:43:21]} {[%emt 00:05:21]} 26. cxd5 {[%clk 00:35:23]}
{[%emt 00:01:41]} cxd5 {[%clk 00:43:41]} {[%emt 00:00:11]} 27. Bxd5 {[%clk
00:33:06]} {[%emt 00:02:47]} Qe3+ {[%clk 00:43:50]} {[%emt 00:00:20]} 28. Rf2
{[%clk 00:30:57]} {[%emt 00:02:39]} Rxf5 {[%clk 00:43:11]} {[%emt 00:01:09]} 29.
Bxb7 {[%clk 00:28:34]} {[%emt 00:02:52]} Ref8 {[%clk 00:43:29]} {[%emt
00:00:12]} 0-1

[Event "SS Manhem Chess Week 2019 Goteborg Open"]
[Site "Molnlycke kulturhus, Biblioteksgatan 2, Molnlycke, Sweden"]
[Date "2019.08.18"]
[Round "7.6"]
[White "Vypkhaniuk, Ihor"]
[Black "Torngren, Gustav"]
[Result "1/2-1/2"]
[TimeControl "15 minutes + 5 seconds per move from move one (Round 1 - 4) / 90 minutes + 30 seconds per move from move one (Round 5 - 8)"]
[WhiteTitle "FM"]
[WhiteFideId "14112256"]
[BlackFideId "1728970"]
[WhiteElo "2405"]
[BlackElo "2061"]

1. Nf3 {[%clk 01:30:26]} {[%emt 00:00:33]} g6 {[%clk 01:30:37]} {[%emt
00:00:23]} 2. c4 {[%clk 01:30:45]} {[%emt 00:00:12]} Bg7 {[%clk 01:30:33]}
{[%emt 00:00:35]} 3. d4 {[%clk 01:31:06]} {[%emt 00:00:08]} c5 {[%clk
01:27:45]} {[%emt 00:03:18]} 4. e4 {[%clk 01:31:15]} {[%emt 00:00:21]} cxd4
{[%clk 01:27:24]} {[%emt 00:00:50]} 5. Nxd4 {[%clk 01:31:08]} {[%emt 00:00:38]}
Nc6 {[%clk 01:27:42]} {[%emt 00:00:13]} 6. Be3 {[%clk 01:31:34]} {[%emt
00:00:03]} Nf6 {[%clk 01:28:01]} {[%emt 00:00:11]} 7. Nc3 {[%clk 01:31:56]}
{[%emt 00:00:08]} Ng4 {[%clk 01:28:25]} {[%emt 00:00:07]} 8. Qxg4 {[%clk
01:32:20]} {[%emt 00:00:06]} Nxd4 {[%clk 01:28:46]} {[%emt 00:00:09]} 9. Qd1
{[%clk 01:32:44]} {[%emt 00:00:05]} e5 {[%clk 01:29:03]} {[%emt 00:00:13]} 10.
Qd2 {[%clk 01:22:25]} {[%emt 00:10:49]} O-O {[%clk 01:20:26]} {[%emt 00:09:07]}
11. Nb5 {[%clk 01:17:53]} {[%emt 00:05:03]} d6 {[%clk 01:20:34]} {[%emt
00:00:22]} 12. Nxd4 {[%clk 00:54:59]} {[%emt 00:23:24]} exd4 {[%clk 01:20:53]}
{[%emt 00:00:10]} 13. Bxd4 {[%clk 00:54:54]} {[%emt 00:00:35]} Bxd4 {[%clk
01:21:12]} {[%emt 00:00:11]} 14. Qxd4 {[%clk 00:55:18]} {[%emt 00:00:06]} Qa5+
{[%clk 01:21:33]} {[%emt 00:00:09]} 15. Qd2 {[%clk 00:47:32]} {[%emt 00:08:16]}
Qe5 {[%clk 01:16:50]} {[%emt 00:05:13]} 16. f3 {[%clk 00:43:37]} {[%emt
00:04:26]} Be6 {[%clk 01:16:48]} {[%emt 00:00:32]} 17. Be2 {[%clk 00:37:10]}
{[%emt 00:06:57]} Rac8 {[%clk 01:00:00]} {[%emt 00:17:17]} 18. Rc1 {[%clk
00:37:14]} {[%emt 00:00:27]} b5 {[%clk 00:51:23]} {[%emt 00:09:07]} 19. O-O
{[%clk 00:29:53]} {[%emt 00:07:51]} Bxc4 {[%clk 00:48:49]} {[%emt 00:03:04]} 20.
Bxc4 {[%clk 00:26:50]} {[%emt 00:03:32]} Rxc4 {[%clk 00:49:07]} {[%emt
00:00:11]} 21. Rcd1 {[%clk 00:19:26]} {[%emt 00:07:55]} Rfc8 {[%clk 00:45:13]}
{[%emt 00:04:24]} 22. Rf2 {[%clk 00:17:15]} {[%emt 00:02:41]} R4c6 {[%clk
00:42:17]} {[%emt 00:03:26]} 23. g3 {[%clk 00:15:42]} {[%emt 00:02:03]} h5
{[%clk 00:39:37]} {[%emt 00:03:09]} 24. Kg2 {[%clk 00:14:58]} {[%emt 00:01:14]}
Kg7 {[%clk 00:39:27]} {[%emt 00:00:41]} 25. Qd4 {[%clk 00:10:15]} {[%emt
00:05:14]} Rc2 {[%clk 00:38:31]} {[%emt 00:01:25]} 26. Qxe5+ {[%clk 00:10:14]}
{[%emt 00:00:32]} dxe5 {[%clk 00:38:59]} {[%emt 00:00:02]} 27. Rdd2 {[%clk
00:10:39]} {[%emt 00:00:05]} Rxd2 {[%clk 00:37:18]} {[%emt 00:02:11]} 28. Rxd2
{[%clk 00:11:08]} {[%emt 00:00:01]} Kf6 {[%clk 00:37:28]} {[%emt 00:00:19]} 29.
f4 {[%clk 00:10:23]} {[%emt 00:01:15]} Ke6 {[%clk 00:33:39]} {[%emt 00:04:19]}
30. Kf3 {[%clk 00:10:50]} {[%emt 00:00:02]} f6 {[%clk 00:33:32]} {[%emt
00:00:38]} 31. Ke3 {[%clk 00:11:09]} {[%emt 00:00:11]} Rc4 {[%clk 00:30:47]}
{[%emt 00:03:14]} 32. fxe5 {[%clk 00:09:39]} {[%emt 00:02:01]} 1/2-1/2

[Event "SS Manhem Chess Week 2019 Goteborg Open"]
[Site "Molnlycke kulturhus, Biblioteksgatan 2, Molnlycke, Sweden"]
[Date "2019.08.18"]
[Round "7.7"]
[White "Welin, Mats"]
[Black "Pham, Bich Ngoc"]
[Result "0-1"]
[TimeControl "15 minutes + 5 seconds per move from move one (Round 1 - 4) / 90 minutes + 30 seconds per move from move one (Round 5 - 8)"]
[WhiteTitle "FM"]
[BlackTitle "WIM"]
[WhiteFideId "1705180"]
[BlackFideId "12401285"]
[WhiteElo "2310"]
[BlackElo "2176"]

1. e4 {[%clk 01:30:42]} {[%emt 00:00:17]} c5 {[%clk 01:30:30]} {[%emt
00:00:31]} 2. Nf3 {[%clk 01:30:27]} {[%emt 00:00:45]} Nc6 {[%clk 01:30:50]}
{[%emt 00:00:10]} 3. d4 {[%clk 01:30:19]} {[%emt 00:00:38]} cxd4 {[%clk
01:31:13]} {[%emt 00:00:07]} 4. Nxd4 {[%clk 01:30:44]} {[%emt 00:00:05]} g6
{[%clk 01:31:36]} {[%emt 00:00:06]} 5. c4 {[%clk 01:30:35]} {[%emt 00:00:40]}
Bg7 {[%clk 01:31:59]} {[%emt 00:00:07]} 6. Be3 {[%clk 01:30:39]} {[%emt
00:00:26]} Nf6 {[%clk 01:31:43]} {[%emt 00:00:46]} 7. Nc3 {[%clk 01:30:56]}
{[%emt 00:00:13]} O-O {[%clk 01:32:05]} {[%emt 00:00:08]} 8. Be2 {[%clk
01:31:02]} {[%emt 00:00:25]} d6 {[%clk 01:32:23]} {[%emt 00:00:12]} 9. O-O
{[%clk 01:30:34]} {[%emt 00:00:57]} Bd7 {[%clk 01:32:44]} {[%emt 00:00:09]} 10.
Qd2 {[%clk 01:28:56]} {[%emt 00:02:08]} Nxd4 {[%clk 01:32:57]} {[%emt
00:00:18]} 11. Bxd4 {[%clk 01:29:05]} {[%emt 00:00:20]} Bc6 {[%clk 01:33:17]}
{[%emt 00:00:10]} 12. f3 {[%clk 01:29:19]} {[%emt 00:00:16]} a5 {[%clk
01:33:42]} {[%emt 00:00:05]} 13. b3 {[%clk 01:29:07]} {[%emt 00:00:42]} Nd7
{[%clk 01:34:04]} {[%emt 00:00:07]} 14. Be3 {[%clk 01:28:41]} {[%emt 00:00:56]}
Nc5 {[%clk 01:34:26]} {[%emt 00:00:09]} 15. Rab1 {[%clk 01:27:58]} {[%emt
00:01:13]} Qb6 {[%clk 01:33:17]} {[%emt 00:01:39]} 16. Rfc1 {[%clk 01:23:19]}
{[%emt 00:05:09]} Qb4 {[%clk 01:26:38]} {[%emt 00:07:09]} 17. Rc2 {[%clk
01:20:41]} {[%emt 00:03:09]} Bxc3 {[%clk 01:16:08]} {[%emt 00:11:00]} 18. Rxc3
{[%clk 01:05:13]} {[%emt 00:15:57]} Bxe4 {[%clk 01:14:45]} {[%emt 00:01:53]} 19.
a3 {[%clk 01:03:51]} {[%emt 00:01:52]} Qxc3 {[%clk 01:14:14]} {[%emt 00:01:01]}
20. Qxc3 {[%clk 01:04:13]} {[%emt 00:00:08]} Bxb1 {[%clk 01:14:40]} {[%emt
00:00:05]} 21. Bh6 {[%clk 01:04:10]} {[%emt 00:00:33]} f6 {[%clk 01:13:20]}
{[%emt 00:01:50]} 22. Bxf8 {[%clk 01:03:55]} {[%emt 00:00:45]} Kxf8 {[%clk
01:13:45]} {[%emt 00:00:05]} 23. h4 {[%clk 00:58:43]} {[%emt 00:05:42]} Bf5
{[%clk 01:13:02]} {[%emt 00:01:13]} 24. Qe3 {[%clk 00:55:22]} {[%emt 00:03:51]}
Kf7 {[%clk 01:04:03]} {[%emt 00:09:29]} 25. Qd4 {[%clk 00:46:14]} {[%emt
00:09:38]} Be6 {[%clk 01:01:21]} {[%emt 00:03:12]} 26. b4 {[%clk 00:39:24]}
{[%emt 00:07:20]} axb4 {[%clk 01:01:35]} {[%emt 00:00:15]} 27. axb4 {[%clk
00:39:50]} {[%emt 00:00:05]} Nd7 {[%clk 01:01:00]} {[%emt 00:01:04]} 28. h5
{[%clk 00:34:27]} {[%emt 00:05:53]} Ra4 {[%clk 00:49:57]} {[%emt 00:11:33]} 29.
Qd2 {[%clk 00:29:48]} {[%emt 00:05:09]} Ra3 {[%clk 00:43:46]} {[%emt 00:06:41]}
30. Kh2 {[%clk 00:29:11]} {[%emt 00:01:07]} Kg7 {[%clk 00:41:43]} {[%emt
00:02:32]} 31. Qd4 {[%clk 00:24:42]} {[%emt 00:04:59]} Ra2 {[%clk 00:39:49]}
{[%emt 00:02:24]} 32. Bf1 {[%clk 00:23:03]} {[%emt 00:02:10]} Ne5 {[%clk
00:36:31]} {[%emt 00:03:48]} 33. Qe4 {[%clk 00:22:20]} {[%emt 00:01:12]} Ra1
{[%clk 00:31:53]} {[%emt 00:05:08]} 34. Be2 {[%clk 00:15:29]} {[%emt 00:07:21]}
Re1 {[%clk 00:31:49]} {[%emt 00:00:34]} 35. Qc2 {[%clk 00:15:55]} {[%emt
00:00:05]} gxh5 {[%clk 00:31:34]} {[%emt 00:00:44]} 36. Qd2 {[%clk 00:14:55]}
{[%emt 00:01:30]} Ra1 {[%clk 00:29:42]} {[%emt 00:02:22]} 37. c5 {[%clk
00:13:53]} {[%emt 00:01:33]} dxc5 {[%clk 00:28:22]} {[%emt 00:01:50]} 38. bxc5
{[%clk 00:14:15]} {[%emt 00:00:08]} Ra2 {[%clk 00:28:41]} {[%emt 00:00:11]} 39.
Qe3 {[%clk 00:14:32]} {[%emt 00:00:13]} Kf7 {[%clk 00:28:45]} {[%emt 00:00:23]}
40. Qe4 {[%clk 00:14:06]} {[%emt 00:00:57]} Kf8 {[%clk 00:21:13]} {[%emt
00:08:02]} 41. Bb5 {[%clk 00:11:03]} {[%emt 00:03:33]} h4 {[%clk 00:21:02]}
{[%emt 00:00:41]} 42. Kg1 {[%clk 00:08:38]} {[%emt 00:02:55]} h3 {[%clk
00:14:05]} {[%emt 00:07:27]} 43. Bf1 {[%clk 00:08:27]} {[%emt 00:00:42]} Ra1
{[%clk 00:13:13]} {[%emt 00:01:22]} 44. Kf2 {[%clk 00:06:08]} {[%emt 00:02:49]}
h2 {[%clk 00:12:35]} {[%emt 00:01:08]} 45. Qxh7 {[%clk 00:05:55]} {[%emt
00:00:43]} Nd3+ {[%emt 00:02:07]} 46. Kg3 {[%clk 00:04:13]} {[%emt 00:01:59]}
Rxf1 {[%clk 00:11:31]} {[%emt 00:00:10]} 47. Kxh2 {[%clk 00:04:29]} {[%emt
00:00:14]} Ne5 {[%clk 00:10:12]} {[%emt 00:01:50]} 48. Qe4 {[%clk 00:03:32]}
{[%emt 00:01:27]} Rc1 {[%clk 00:10:16]} {[%emt 00:00:26]} 49. Qxb7 {[%clk
00:03:46]} {[%emt 00:00:16]} Rxc5 {[%clk 00:10:38]} {[%emt 00:00:08]} 50. Qe4
{[%clk 00:03:54]} {[%emt 00:00:22]} Kg7 {[%clk 00:10:39]} {[%emt 00:00:29]} 51.
Kg3 {[%clk 00:03:56]} {[%emt 00:00:29]} Rc4 {[%clk 00:10:56]} {[%emt 00:00:12]}
52. Qb7 {[%clk 00:04:13]} {[%emt 00:00:13]} Kf7 {[%clk 00:11:21]} {[%emt
00:00:05]} 53. Qb1 {[%clk 00:04:27]} {[%emt 00:00:16]} Ng6 {[%clk 00:11:42]}
{[%emt 00:00:09]} 54. Qh1 {[%clk 00:04:15]} {[%emt 00:00:42]} Nh4 {[%clk
00:11:44]} {[%emt 00:00:28]} 55. Qd1 {[%clk 00:04:21]} {[%emt 00:00:25]} Rb4
{[%clk 00:10:51]} {[%emt 00:01:21]} 56. Qd2 {[%clk 00:04:18]} {[%emt 00:00:34]}
Ra4 {[%clk 00:11:12]} {[%emt 00:00:09]} 57. Qc2 {[%clk 00:02:16]} {[%emt
00:02:33]} Nf5+ {[%clk 00:11:30]} {[%emt 00:00:12]} 58. Kh2 {[%clk 00:02:43]}
{[%emt 00:00:03]} Rh4+ {[%clk 00:10:02]} {[%emt 00:01:58]} 59. Kg1 {[%clk
00:03:10]} {[%emt 00:00:04]} Rh8 {[%clk 00:10:25]} {[%emt 00:00:07]} 60. Kf2
{[%clk 00:02:31]} {[%emt 00:01:08]} Ra8 {[%clk 00:10:22]} {[%emt 00:00:33]} 61.
Kg1 {[%clk 00:02:42]} {[%emt 00:00:19]} Rg8 {[%clk 00:09:58]} {[%emt 00:00:54]}
62. Kf2 Rxg2+ {[%clk 00:09:58]} 0-1

[Event "SS Manhem Chess Week 2019 Goteborg Open"]
[Site "Molnlycke kulturhus, Biblioteksgatan 2, Molnlycke, Sweden"]
[Date "2019.08.18"]
[Round "7.8"]
[White "Ziegler, Ari"]
[Black "Johnson, Daniel"]
[Result "1-0"]
[TimeControl "15 minutes + 5 seconds per move from move one (Round 1 - 4) / 90 minutes + 30 seconds per move from move one (Round 5 - 8)"]
[WhiteTitle "IM"]
[WhiteFideId "1700987"]
[BlackFideId "1721283"]
[WhiteElo "2300"]
[BlackElo "2201"]

1. e4 {[%clk 01:28:40]} {[%emt 00:02:18]} c5 {[%clk 01:25:30]} {[%emt
00:05:30]} 2. Nf3 {[%clk 01:29:01]} {[%emt 00:00:08]} e6 {[%clk 01:25:48]}
{[%emt 00:00:12]} 3. d4 {[%clk 01:29:24]} {[%emt 00:00:07]} cxd4 {[%clk
01:26:13]} {[%emt 00:00:05]} 4. Nxd4 {[%clk 01:29:48]} {[%emt 00:00:06]} a6
{[%clk 01:26:38]} {[%emt 00:00:05]} 5. Nc3 {[%clk 01:30:12]} {[%emt 00:00:07]}
Qc7 {[%clk 01:27:00]} {[%emt 00:00:06]} 6. g3 {[%clk 01:30:38]} {[%emt
00:00:05]} Nc6 {[%clk 01:27:04]} {[%emt 00:00:26]} 7. Bg2 {[%clk 01:31:00]}
{[%emt 00:00:08]} d6 {[%clk 01:22:55]} {[%emt 00:04:39]} 8. O-O {[%clk
01:31:09]} {[%emt 00:00:21]} Nf6 {[%clk 01:19:21]} {[%emt 00:04:06]} 9. Be3
{[%clk 01:28:07]} {[%emt 00:03:31]} Be7 {[%clk 01:18:08]} {[%emt 00:01:43]} 10.
a4 {[%clk 01:28:29]} {[%emt 00:00:09]} Na5 {[%clk 01:01:12]} {[%emt 00:17:25]}
11. Qe2 {[%clk 01:18:46]} {[%emt 00:10:13]} O-O {[%clk 00:57:40]} {[%emt
00:04:03]} 12. Rad1 {[%clk 01:18:14]} {[%emt 00:01:01]} Bd7 {[%clk 00:51:14]}
{[%emt 00:06:56]} 13. g4 {[%clk 01:12:49]} {[%emt 00:05:55]} Qc4 {[%clk
00:33:19]} {[%emt 00:18:25]} 14. Rd3 {[%clk 01:09:01]} {[%emt 00:04:19]} Nc6
{[%clk 00:23:49]} {[%emt 00:10:00]} 15. g5 {[%clk 01:05:53]} {[%emt 00:03:37]}
Ne8 {[%clk 00:23:11]} {[%emt 00:01:08]} 16. Nxc6 {[%clk 00:59:39]} {[%emt
00:06:45]} bxc6 {[%clk 00:20:07]} {[%emt 00:03:34]} 17. Qh5 {[%clk 00:56:26]}
{[%emt 00:03:42]} g6 {[%clk 00:16:40]} {[%emt 00:03:57]} 18. Qh6 {[%clk
00:56:11]} {[%emt 00:00:45]} e5 {[%clk 00:08:35]} {[%emt 00:08:36]} 19. f4
{[%clk 00:53:31]} {[%emt 00:03:09]} exf4 {[%clk 00:00:33]} {[%emt 00:08:33]} 20.
Rxf4 {[%clk 00:53:44]} {[%emt 00:00:16]} Ng7 {[%clk 00:00:32]} {[%emt
00:00:32]} 21. Rh4 {[%clk 00:51:44]} {[%emt 00:02:29]} Nh5 {[%clk 00:00:49]}
{[%emt 00:00:14]} 22. Rxh5 {[%clk 00:52:02]} {[%emt 00:00:11]} gxh5 {[%clk
00:00:34]} {[%emt 00:00:47]} 23. Bd4 {[%clk 00:52:23]} {[%emt 00:00:08]} f6
{[%clk 00:00:36]} {[%emt 00:00:29]} 24. g6 {[%clk 00:52:45]} {[%emt 00:00:07]}
Rf7 {[%clk 00:00:35]} {[%emt 00:00:32]} 25. gxf7+ {[%clk 00:52:57]} {[%emt
00:00:17]} Qxf7 {[%clk 00:00:57]} {[%emt 00:00:08]} 26. Rg3+ {[%clk 00:51:46]}
{[%emt 00:01:41]} Kh8 {[%clk 00:01:19]} {[%emt 00:00:08]} 27. Bf3 {[%clk
00:49:56]} {[%emt 00:02:20]} 1-0